[Event "*** SCC Grand Prix: Titled Tuesday Blitz"]
[Site "Chess.com"]
[Date "2020.09.08"]
[Round "2"]
[White "Vsevolod_Ovchinnikov"]
[Black "Izoria123"]
[Result "0-1"]
[WhiteElo "2559"]
[BlackElo "2874"]
[TimeControl "180+1"]
[EndTime "10:17:29 PDT"]
[Termination "Izoria123 won on time"]

1. d4 {[%clk 0:03:00.9]} 1... d6 {[%clk 0:02:59.6]} 2. Nf3 {[%clk 0:03:00.2]}
2... g6 {[%clk 0:02:59.3]} 3. c4 {[%clk 0:02:59.9]} 3... Bg7 {[%clk 0:02:59.6]}
4. Nc3 {[%clk 0:02:59.7]} 4... Bg4 {[%clk 0:02:59.2]} 5. e3 {[%clk 0:02:20.7]}
5... c5 {[%clk 0:02:58.4]} 6. Qa4+ {[%clk 0:01:56.4]} 6... Qd7 {[%clk
0:02:43.3]} 7. Qxd7+ {[%clk 0:01:36]} 7... Nxd7 {[%clk 0:02:44.2]} 8. Be2 {[%clk
0:01:36.2]} 8... Ngf6 {[%clk 0:02:28.1]} 9. h3 {[%clk 0:01:33.2]} 9... Bf5
{[%clk 0:02:27.1]} 10. Bd2 {[%clk 0:01:27]} 10... Ne4 {[%clk 0:02:26.4]} 11.
Nxe4 {[%clk 0:01:26.9]} 11... Bxe4 {[%clk 0:02:27.3]} 12. Bc3 {[%clk 0:01:26]}
12... O-O {[%clk 0:02:25.8]} 13. O-O {[%clk 0:01:22.5]} 13... a6 {[%clk
0:02:18.2]} 14. Rac1 {[%clk 0:01:17.7]} 14... b6 {[%clk 0:02:11.4]} 15. Rfd1
{[%clk 0:01:17]} 15... Rfc8 {[%clk 0:02:09.8]} 16. Ng5 {[%clk 0:01:11.2]} 16...
Bb7 {[%clk 0:02:08.9]} 17. Bf3 {[%clk 0:00:59.5]} 17... Ra7 {[%clk 0:02:06]} 18.
b3 {[%clk 0:00:55.6]} 18... h6 {[%clk 0:01:48.5]} 19. Bxb7 {[%clk 0:00:55.1]}
19... Rxb7 {[%clk 0:01:49.4]} 20. Nf3 {[%clk 0:00:52.5]} 20... Ra8 {[%clk
0:01:43.2]} 21. dxc5 {[%clk 0:00:37]} 21... bxc5 {[%clk 0:01:44.1]} 22. Ba5
{[%clk 0:00:34.6]} 22... Nb8 {[%clk 0:01:42.1]} 23. Bc3 {[%clk 0:00:23.1]} 23...
Nc6 {[%clk 0:01:42.2]} 24. Bxg7 {[%clk 0:00:22.8]} 24... Kxg7 {[%clk 0:01:43.1]}
25. Nd2 {[%clk 0:00:19.7]} 25... a5 {[%clk 0:01:42.8]} 26. a4 {[%clk 0:00:10.2]}
26... f5 {[%clk 0:01:42.2]} 27. f4 {[%clk 0:00:09.7]} 27... Kf6 {[%clk
0:01:41.5]} 28. Kf2 {[%clk 0:00:09.6]} 28... e6 {[%clk 0:01:37.8]} 29. g3 {[%clk
0:00:09.7]} 29... g5 {[%clk 0:01:37.2]} 30. Rc3 {[%clk 0:00:09.1]} 30... Rg8
{[%clk 0:01:28.4]} 31. Rd3 {[%clk 0:00:06.4]} 31... Rd7 {[%clk 0:01:27.6]} 32.
Nf3 {[%clk 0:00:05]} 32... Rgd8 {[%clk 0:01:23.6]} 33. Ne1 {[%clk 0:00:04.5]}
33... e5 {[%clk 0:01:06.1]} 34. R3d2 {[%clk 0:00:03.8]} 34... e4 {[%clk
0:01:05.1]} 35. Nc2 {[%clk 0:00:03.2]} 35... Ke6 {[%clk 0:01:04.7]} 36. Na1
{[%clk 0:00:02.9]} 36... gxf4 {[%clk 0:01:03]} 37. gxf4 {[%clk 0:00:02.6]} 37...
d5 {[%clk 0:01:01.1]} 38. cxd5+ {[%clk 0:00:02.5]} 38... Rxd5 {[%clk 0:01:02]}
39. Rxd5 {[%clk 0:00:02.9]} 39... Rxd5 {[%clk 0:01:02.7]} 40. Rg1 {[%clk
0:00:02.6]} 40... Rd2+ {[%clk 0:01:01.6]} 41. Kg3 {[%clk 0:00:02]} 41... Nb4
{[%clk 0:00:59.1]} 42. Kh4 {[%clk 0:00:01.7]} 42... Ra2 {[%clk 0:00:56.9]} 0-1

[Event "*** SCC Grand Prix: Titled Tuesday Blitz"]
[Site "Chess.com"]
[Date "2020.09.08"]
[Round "2"]
[White "Abdimalik_Abdisalimov"]
[Black "PotapovaM"]
[Result "1-0"]
[WhiteElo "2758"]
[BlackElo "2507"]
[TimeControl "180+1"]
[EndTime "10:17:29 PDT"]
[Termination "Abdimalik_Abdisalimov won by resignation"]

1. d4 {[%clk 0:02:59.9]} 1... Nf6 {[%clk 0:02:59.4]} 2. c4 {[%clk 0:02:59.3]}
2... e6 {[%clk 0:03:00]} 3. Nc3 {[%clk 0:02:56.2]} 3... Bb4 {[%clk 0:03:00.4]}
4. e3 {[%clk 0:02:56.6]} 4... O-O {[%clk 0:02:59.4]} 5. Bd3 {[%clk 0:02:56.8]}
5... d5 {[%clk 0:02:56.8]} 6. Nf3 {[%clk 0:02:57.2]} 6... dxc4 {[%clk
0:02:54.7]} 7. Bxc4 {[%clk 0:02:58.1]} 7... c5 {[%clk 0:02:55.2]} 8. O-O {[%clk
0:02:58.2]} 8... cxd4 {[%clk 0:02:55.5]} 9. exd4 {[%clk 0:02:59.1]} 9... b6
{[%clk 0:02:55.6]} 10. Bg5 {[%clk 0:02:59.2]} 10... Bb7 {[%clk 0:02:56.2]} 11.
Qe2 {[%clk 0:02:53.8]} 11... Bxc3 {[%clk 0:02:52.1]} 12. bxc3 {[%clk 0:02:53.3]}
12... Nbd7 {[%clk 0:02:53]} 13. Rac1 {[%clk 0:02:51.3]} 13... Qc7 {[%clk
0:02:49.5]} 14. Bb3 {[%clk 0:02:50.5]} 14... Ng4 {[%clk 0:02:44.4]} 15. g3
{[%clk 0:02:50.3]} 15... Ngf6 {[%clk 0:02:21.1]} 16. c4 {[%clk 0:02:30.7]} 16...
Rfe8 {[%clk 0:02:18.2]} 17. Rfe1 {[%clk 0:02:29.3]} 17... Qc6 {[%clk 0:02:14.4]}
18. Kg2 {[%clk 0:01:56.5]} 18... h6 {[%clk 0:02:12.1]} 19. Be3 {[%clk
0:01:38.7]} 19... Ne4 {[%clk 0:01:45.7]} 20. Red1 {[%clk 0:01:24.9]} 20... Ng5
{[%clk 0:01:43]} 21. d5 {[%clk 0:01:05.9]} 21... exd5 {[%clk 0:01:35.7]} 22.
cxd5 {[%clk 0:01:06.8]} 22... Qf6 {[%clk 0:01:04.4]} 23. Nxg5 {[%clk 0:01:06.4]}
23... hxg5 {[%clk 0:00:59.3]} 24. Rc7 {[%clk 0:01:06.1]} 24... Nc5 {[%clk
0:00:51.4]} 25. Qg4 {[%clk 0:01:05.8]} 25... Rxe3 {[%clk 0:00:31.6]} 26. fxe3
{[%clk 0:01:02]} 26... Qb2+ {[%clk 0:00:29.3]} 27. Kg1 {[%clk 0:00:57.5]} 27...
Qc3 {[%clk 0:00:24.5]} 28. Qd4 {[%clk 0:00:54.4]} 28... Qxd4 {[%clk 0:00:15.5]}
29. Rxd4 {[%clk 0:00:41.1]} 29... Rd8 {[%clk 0:00:07.7]} 30. d6 {[%clk 0:00:41]}
30... Ne6 {[%clk 0:00:05.5]} 31. Bxe6 {[%clk 0:00:40.2]} 31... fxe6 {[%clk
0:00:06.4]} 32. Rxb7 {[%clk 0:00:40.1]} 1-0

[Event "*** SCC Grand Prix: Titled Tuesday Blitz"]
[Site "Chess.com"]
[Date "2020.09.08"]
[Round "2"]
[White "allvim"]
[Black "Bhagya_2312"]
[Result "1-0"]
[WhiteElo "2380"]
[BlackElo "2071"]
[TimeControl "180+1"]
[EndTime "10:17:33 PDT"]
[Termination "allvim won on time"]

1. d4 {[%clk 0:03:00.9]} 1... d5 {[%clk 0:02:58.5]} 2. Bf4 {[%clk 0:02:59.2]}
2... Nf6 {[%clk 0:02:57.5]} 3. Nf3 {[%clk 0:02:58.5]} 3... c5 {[%clk 0:02:56.7]}
4. c3 {[%clk 0:02:55.3]} 4... Nc6 {[%clk 0:02:56.7]} 5. Nbd2 {[%clk 0:02:48.6]}
5... cxd4 {[%clk 0:02:55.8]} 6. cxd4 {[%clk 0:02:48.4]} 6... Bf5 {[%clk
0:02:54.1]} 7. a3 {[%clk 0:02:33]} 7... e6 {[%clk 0:02:53.2]} 8. e3 {[%clk
0:02:29]} 8... Bd6 {[%clk 0:02:52.3]} 9. Ne5 {[%clk 0:02:16.4]} 9... O-O {[%clk
0:02:44.3]} 10. Be2 {[%clk 0:02:13.1]} 10... Rc8 {[%clk 0:02:32.3]} 11. g4
{[%clk 0:02:12.9]} 11... Be4 {[%clk 0:02:13.6]} 12. f3 {[%clk 0:02:06.1]} 12...
Bg6 {[%clk 0:02:00.3]} 13. h4 {[%clk 0:02:01.9]} 13... h6 {[%clk 0:01:57.6]} 14.
g5 {[%clk 0:01:59.2]} 14... Nh5 {[%clk 0:01:52.4]} 15. gxh6 {[%clk 0:01:53.4]}
15... Bc2 {[%clk 0:01:46.4]} 16. Qxc2 {[%clk 0:01:04]} 16... Nxe5 {[%clk
0:01:43.8]} 17. Qb1 {[%clk 0:00:46.8]} 17... Ng6 {[%clk 0:01:40]} 18. hxg7
{[%clk 0:00:39.6]} 18... Kxg7 {[%clk 0:01:33.7]} 19. Bg5 {[%clk 0:00:26.3]}
19... Be7 {[%clk 0:01:21.3]} 20. Rg1 {[%clk 0:00:25.3]} 20... Bxg5 {[%clk
0:00:53.8]} 21. Rxg5 {[%clk 0:00:23.1]} 21... Rh8 {[%clk 0:00:46.3]} 22. f4
{[%clk 0:00:22.5]} 22... Nf6 {[%clk 0:00:43.4]} 23. h5 {[%clk 0:00:22.7]} 23...
Ne4 {[%clk 0:00:35.7]} 24. Nxe4 {[%clk 0:00:20.5]} 24... dxe4 {[%clk 0:00:03.3]}
25. Qxe4 {[%clk 0:00:20.1]} 1-0

[Event "*** SCC Grand Prix: Titled Tuesday Blitz"]
[Site "Chess.com"]
[Date "2020.09.08"]
[Round "2"]
[White "GothamChess"]
[Black "Guenplen"]
[Result "1/2-1/2"]
[WhiteElo "2574"]
[BlackElo "2897"]
[TimeControl "180+1"]
[EndTime "10:17:36 PDT"]
[Termination "Game drawn by agreement"]

1. e4 {[%clk 0:03:00.9]} 1... c5 {[%clk 0:03:00.1]} 2. a3 {[%clk 0:03:00.8]}
2... e6 {[%clk 0:02:56.7]} 3. b4 {[%clk 0:03:00.6]} 3... d5 {[%clk 0:02:56.7]}
4. exd5 {[%clk 0:03:00.1]} 4... exd5 {[%clk 0:02:56.4]} 5. Nf3 {[%clk
0:02:59.8]} 5... Nf6 {[%clk 0:02:55.3]} 6. Bb2 {[%clk 0:02:59.3]} 6... cxb4
{[%clk 0:02:43.2]} 7. Bb5+ {[%clk 0:02:52.2]} 7... Bd7 {[%clk 0:02:42.3]} 8.
Qe2+ {[%clk 0:02:52]} 8... Qe7 {[%clk 0:02:39.5]} 9. Bxf6 {[%clk 0:02:45.2]}
9... Qxe2+ {[%clk 0:02:35]} 10. Bxe2 {[%clk 0:02:44.6]} 10... gxf6 {[%clk
0:02:35.3]} 11. axb4 {[%clk 0:02:38.4]} 11... Bxb4 {[%clk 0:02:32.8]} 12. O-O
{[%clk 0:02:37.2]} 12... Nc6 {[%clk 0:02:30.7]} 13. Na3 {[%clk 0:02:30.5]} 13...
Bxa3 {[%clk 0:02:14.3]} 14. Rxa3 {[%clk 0:02:29.4]} 14... O-O {[%clk 0:02:15.2]}
15. Rb1 {[%clk 0:02:13]} 15... b6 {[%clk 0:02:13.8]} 16. Bb5 {[%clk 0:02:10.6]}
16... Rfc8 {[%clk 0:01:53.3]} 17. c3 {[%clk 0:02:03.8]} 17... Rc7 {[%clk
0:01:29.2]} 18. h3 {[%clk 0:02:03.5]} 18... Re8 {[%clk 0:01:12.3]} 19. Bxc6
{[%clk 0:01:53.9]} 19... Bxc6 {[%clk 0:01:13.2]} 20. Nd4 {[%clk 0:01:53.9]}
20... Bd7 {[%clk 0:01:11.3]} 21. Rba1 {[%clk 0:01:50.2]} 21... a5 {[%clk
0:01:11.2]} 22. Rb1 {[%clk 0:01:49]} 22... a4 {[%clk 0:00:54.2]} 23. Rxb6 {[%clk
0:01:48.8]} 23... Re1+ {[%clk 0:00:54.1]} 24. Kh2 {[%clk 0:01:49]} 24... Kg7
{[%clk 0:00:55]} 25. Kg3 {[%clk 0:01:35.9]} 25... Rd1 {[%clk 0:00:54.1]} 26. Nf3
{[%clk 0:01:32.7]} 26... Ra7 {[%clk 0:00:49.1]} 27. Rd6 {[%clk 0:01:29.9]} 27...
Be6 {[%clk 0:00:41.5]} 28. Rb6 {[%clk 0:01:24.1]} 28... Bf5 {[%clk 0:00:33.3]}
29. Rb4 {[%clk 0:01:15.8]} 29... Bc2 {[%clk 0:00:28.3]} 30. Rg4+ {[%clk
0:01:16]} 30... Kf8 {[%clk 0:00:28.1]} 31. Nd4 {[%clk 0:01:16.5]} 31... Rxd2
{[%clk 0:00:25.9]} 32. f3 {[%clk 0:00:55.4]} 32... Bd1 {[%clk 0:00:20.8]} 33.
Rf4 {[%clk 0:00:55.4]} 33... Ra6 {[%clk 0:00:18.9]} 34. Rh4 {[%clk 0:00:48.8]}
34... Be2 {[%clk 0:00:13.6]} 35. Nxe2 {[%clk 0:00:37.1]} 35... Rxe2 {[%clk
0:00:14.5]} 36. Raxa4 {[%clk 0:00:31.2]} 36... Rxa4 {[%clk 0:00:15.4]} 37. Rxa4
{[%clk 0:00:31.1]} 37... Rc2 {[%clk 0:00:11.6]} 38. Rd4 {[%clk 0:00:30.1]}
1/2-1/2

[Event "*** SCC Grand Prix: Titled Tuesday Blitz"]
[Site "Chess.com"]
[Date "2020.09.08"]
[Round "2"]
[White "Shubinkirill2003"]
[Black "Xeslu"]
[Result "1-0"]
[WhiteElo "2642"]
[BlackElo "2309"]
[TimeControl "180+1"]
[EndTime "10:17:36 PDT"]
[Termination "Shubinkirill2003 won on time"]

1. e4 {[%clk 0:03:00.9]} 1... c5 {[%clk 0:02:57.3]} 2. Nf3 {[%clk 0:03:00.6]}
2... Nc6 {[%clk 0:02:56.9]} 3. Bb5 {[%clk 0:02:59.7]} 3... g6 {[%clk 0:02:56.2]}
4. Bxc6 {[%clk 0:02:59.8]} 4... dxc6 {[%clk 0:02:56.4]} 5. d3 {[%clk 0:03:00.2]}
5... Bg7 {[%clk 0:02:56.6]} 6. h3 {[%clk 0:03:01.1]} 6... e5 {[%clk 0:02:56.6]}
7. a4 {[%clk 0:03:01.5]} 7... Qe7 {[%clk 0:02:53.6]} 8. a5 {[%clk 0:03:01.2]}
8... Nf6 {[%clk 0:02:52.4]} 9. Nbd2 {[%clk 0:03:00.7]} 9... Nd7 {[%clk
0:02:51.5]} 10. Nc4 {[%clk 0:03:00.8]} 10... O-O {[%clk 0:02:50.6]} 11. Be3
{[%clk 0:03:00.3]} 11... Rb8 {[%clk 0:02:40.2]} 12. Qd2 {[%clk 0:02:57.6]} 12...
Re8 {[%clk 0:02:37.8]} 13. O-O {[%clk 0:02:54.9]} 13... Nf8 {[%clk 0:02:31.7]}
14. Nfxe5 {[%clk 0:02:33]} 14... Bxe5 {[%clk 0:01:18.4]} 15. Nxe5 {[%clk
0:02:33.9]} 15... Qxe5 {[%clk 0:01:19.1]} 16. Bf4 {[%clk 0:02:32.6]} 16... Qh5
{[%clk 0:01:19.6]} 17. Bxb8 {[%clk 0:02:31.5]} 17... Bxh3 {[%clk 0:01:19.8]} 18.
gxh3 {[%clk 0:02:22.4]} 18... Rxb8 {[%clk 0:01:18.3]} 19. Qf4 {[%clk 0:02:21.9]}
19... Re8 {[%clk 0:01:17.7]} 20. Qg4 {[%clk 0:02:19.5]} 20... Qe5 {[%clk
0:01:17.7]} 21. c3 {[%clk 0:02:18.9]} 21... h5 {[%clk 0:01:16.4]} 22. Qg3 {[%clk
0:02:16.8]} 22... Qe6 {[%clk 0:01:09.1]} 23. f4 {[%clk 0:02:15.8]} 23... Qb3
{[%clk 0:01:08.6]} 24. Rf2 {[%clk 0:02:14.4]} 24... c4 {[%clk 0:01:08.7]} 25. f5
{[%clk 0:01:59.5]} 25... cxd3 {[%clk 0:01:08.6]} 26. Qxd3 {[%clk 0:01:59.4]}
26... Kg7 {[%clk 0:00:48.9]} 27. Raf1 {[%clk 0:01:47.9]} 27... Qb5 {[%clk
0:00:37.8]} 28. Qd4+ {[%clk 0:01:34.8]} 28... Qe5 {[%clk 0:00:33.5]} 29. fxg6
{[%clk 0:01:32.4]} 29... Nxg6 {[%clk 0:00:26.2]} 30. Rxf7+ {[%clk 0:01:30.8]}
30... Kh6 {[%clk 0:00:27.1]} 31. Qe3+ {[%clk 0:01:21.8]} 31... Qg5+ {[%clk
0:00:26.7]} 32. Qxg5+ {[%clk 0:01:21.4]} 32... Kxg5 {[%clk 0:00:27.6]} 33. R1f5+
{[%clk 0:01:15.6]} 33... Kh6 {[%clk 0:00:25.9]} 34. Rxb7 {[%clk 0:01:05.3]}
34... Rxe4 {[%clk 0:00:25.8]} 35. Rxa7 {[%clk 0:01:02.5]} 35... Re2 {[%clk
0:00:23.8]} 36. Rb7 {[%clk 0:01:00.1]} 36... Nh4 {[%clk 0:00:21.4]} 37. Rf2
{[%clk 0:00:59.2]} 37... Re1+ {[%clk 0:00:20.1]} 38. Kh2 {[%clk 0:00:58.5]}
38... Re3 {[%clk 0:00:19.9]} 39. a6 {[%clk 0:00:57.2]} 39... Nf3+ {[%clk
0:00:19.9]} 40. Rxf3 {[%clk 0:00:56.5]} 40... Rxf3 {[%clk 0:00:20.2]} 41. a7
{[%clk 0:00:56.7]} 41... Rf2+ {[%clk 0:00:19.6]} 42. Kg1 {[%clk 0:00:56.1]} 1-0

[Event "*** SCC Grand Prix: Titled Tuesday Blitz"]
[Site "Chess.com"]
[Date "2020.09.08"]
[Round "2"]
[White "daro94"]
[Black "Agibileg"]
[Result "1-0"]
[WhiteElo "2971"]
[BlackElo "2587"]
[TimeControl "180+1"]
[EndTime "10:17:38 PDT"]
[Termination "daro94 won on time"]

1. Nf3 {[%clk 0:03:00.9]} 1... Nf6 {[%clk 0:02:59]} 2. b3 {[%clk 0:03:01]} 2...
g6 {[%clk 0:02:58.2]} 3. Bb2 {[%clk 0:03:01.4]} 3... Bg7 {[%clk 0:02:58.6]} 4.
g3 {[%clk 0:03:02.1]} 4... b6 {[%clk 0:02:54.4]} 5. Bg2 {[%clk 0:03:01.9]} 5...
Bb7 {[%clk 0:02:54.7]} 6. O-O {[%clk 0:03:02.5]} 6... O-O {[%clk 0:02:55]} 7. c4
{[%clk 0:03:02.9]} 7... c5 {[%clk 0:02:54.6]} 8. d4 {[%clk 0:02:59.8]} 8... Ne4
{[%clk 0:02:54]} 9. Nc3 {[%clk 0:02:31.5]} 9... Nxc3 {[%clk 0:02:51.4]} 10. Bxc3
{[%clk 0:02:32.4]} 10... Nc6 {[%clk 0:02:51.1]} 11. Qd2 {[%clk 0:02:27.9]} 11...
cxd4 {[%clk 0:02:42]} 12. Nxd4 {[%clk 0:02:28.8]} 12... Qc8 {[%clk 0:02:34.3]}
13. Rfd1 {[%clk 0:02:24]} 13... Nxd4 {[%clk 0:02:32.7]} 14. Bxd4 {[%clk
0:02:23.1]} 14... Bxg2 {[%clk 0:02:32.7]} 15. Bxg7 {[%clk 0:02:17.3]} 15... Kxg7
{[%clk 0:02:33.6]} 16. Kxg2 {[%clk 0:02:18]} 16... d6 {[%clk 0:02:27.8]} 17. h4
{[%clk 0:02:09.4]} 17... h5 {[%clk 0:02:26.3]} 18. e4 {[%clk 0:02:08.4]} 18...
Rb8 {[%clk 0:02:15.5]} 19. a4 {[%clk 0:02:07.8]} 19... a6 {[%clk 0:02:13.9]} 20.
Qb2+ {[%clk 0:01:55.8]} 20... Kg8 {[%clk 0:02:07.3]} 21. Rd5 {[%clk 0:01:56.4]}
21... Qc6 {[%clk 0:01:50.2]} 22. Qe2 {[%clk 0:01:56.5]} 22... Rfd8 {[%clk
0:01:35.4]} 23. Rad1 {[%clk 0:01:54.6]} 23... Rdc8 {[%clk 0:01:27]} 24. g4
{[%clk 0:01:53]} 24... hxg4 {[%clk 0:01:22.2]} 25. Qxg4 {[%clk 0:01:53.9]} 25...
b5 {[%clk 0:00:44.5]} 26. axb5 {[%clk 0:01:51.2]} 26... axb5 {[%clk 0:00:44]}
27. cxb5 {[%clk 0:01:51.9]} 27... Qc2 {[%clk 0:00:34.8]} 28. h5 {[%clk
0:01:47.3]} 28... Kg7 {[%clk 0:00:20.3]} 29. hxg6 {[%clk 0:01:37.9]} 29... Rg8
{[%clk 0:00:18.4]} 30. Rg5 {[%clk 0:01:19.5]} 30... f6 {[%clk 0:00:16.8]} 31.
Rh5 {[%clk 0:01:16]} 31... Kf8 {[%clk 0:00:15.8]} 32. Rh7 {[%clk 0:01:09.7]}
32... Rxb5 {[%clk 0:00:16.2]} 33. Ra1 {[%clk 0:00:53.5]} 33... Rb8 {[%clk
0:00:15.5]} 34. Ra7 {[%clk 0:00:50.3]} 34... Rg7 {[%clk 0:00:12.1]} 35. Rxg7
{[%clk 0:00:41.4]} 35... Kxg7 {[%clk 0:00:12]} 36. Rxe7+ {[%clk 0:00:42.1]}
36... Kf8 {[%clk 0:00:07.8]} 37. Qe6 {[%clk 0:00:39.6]} 37... Qxe4+ {[%clk
0:00:01.6]} 38. Qxe4 {[%clk 0:00:39.2]} 1-0

[Event "*** SCC Grand Prix: Titled Tuesday Blitz"]
[Site "Chess.com"]
[Date "2020.09.08"]
[Round "2"]
[White "ASVZ"]
[Black "dretch"]
[Result "0-1"]
[WhiteElo "2514"]
[BlackElo "2776"]
[TimeControl "180+1"]
[EndTime "10:17:39 PDT"]
[Termination "dretch won by checkmate"]

1. e4 {[%clk 0:03:00.9]} 1... e6 {[%clk 0:02:58.9]} 2. d4 {[%clk 0:03:00.7]}
2... d5 {[%clk 0:02:59.5]} 3. e5 {[%clk 0:03:01.3]} 3... c5 {[%clk 0:02:59.4]}
4. c3 {[%clk 0:03:02]} 4... Nc6 {[%clk 0:02:59]} 5. Be3 {[%clk 0:03:02.1]} 5...
Nge7 {[%clk 0:02:56.3]} 6. Nf3 {[%clk 0:03:01.6]} 6... Nf5 {[%clk 0:02:55.9]} 7.
Bd3 {[%clk 0:03:01.4]} 7... c4 {[%clk 0:02:49.2]} 8. Bc2 {[%clk 0:03:00.2]} 8...
b5 {[%clk 0:02:47.4]} 9. Nbd2 {[%clk 0:02:53.4]} 9... Bd7 {[%clk 0:02:43.8]} 10.
O-O {[%clk 0:02:53.2]} 10... b4 {[%clk 0:02:43]} 11. a3 {[%clk 0:02:42.6]} 11...
bxc3 {[%clk 0:02:40.2]} 12. bxc3 {[%clk 0:02:42.5]} 12... Qa5 {[%clk 0:02:40.6]}
13. Nb1 {[%clk 0:02:38.9]} 13... Nxe3 {[%clk 0:02:34.5]} 14. fxe3 {[%clk
0:02:39]} 14... Be7 {[%clk 0:02:35.1]} 15. e4 {[%clk 0:02:37.9]} 15... Rb8
{[%clk 0:02:33.2]} 16. Qc1 {[%clk 0:02:31.7]} 16... O-O {[%clk 0:02:27.5]} 17.
Ra2 {[%clk 0:02:29.6]} 17... f6 {[%clk 0:02:26.9]} 18. exf6 {[%clk 0:02:28.6]}
18... Rxf6 {[%clk 0:02:23.6]} 19. e5 {[%clk 0:02:28.4]} 19... Rf7 {[%clk
0:02:19.3]} 20. Ng5 {[%clk 0:02:23.3]} 20... Rxf1+ {[%clk 0:02:17.9]} 21. Kxf1
{[%clk 0:02:24.1]} 21... Rf8+ {[%clk 0:01:54.3]} 22. Nf3 {[%clk 0:02:15.4]}
22... Be8 {[%clk 0:01:51.1]} 23. Rb2 {[%clk 0:01:51.2]} 23... Bh5 {[%clk
0:01:48]} 24. Kf2 {[%clk 0:01:49.9]} 24... Bh4+ {[%clk 0:01:34]} 25. Ke2 {[%clk
0:01:50.1]} 25... Qd8 {[%clk 0:01:19.8]} 26. Rb7 {[%clk 0:01:41.9]} 26... Qc8
{[%clk 0:00:50.6]} 27. Qb2 {[%clk 0:01:40.3]} 27... Bd8 {[%clk 0:00:49.9]} 28.
Rb5 {[%clk 0:01:05.7]} 28... Bb6 {[%clk 0:00:46.6]} 29. Qc1 {[%clk 0:00:48.1]}
29... Bxd4 {[%clk 0:00:43.6]} 30. Qg5 {[%clk 0:00:44.3]} 30... Bxf3+ {[%clk
0:00:41]} 31. gxf3 {[%clk 0:00:44.1]} 31... Bxe5 {[%clk 0:00:40.6]} 32. Nd2
{[%clk 0:00:30.5]} 32... Bxc3 {[%clk 0:00:38.4]} 33. Rc5 {[%clk 0:00:22.3]}
33... Nd4+ {[%clk 0:00:37.1]} 34. Kf2 {[%clk 0:00:20.3]} 34... Qxc5 {[%clk
0:00:37.1]} 35. Qh5 {[%clk 0:00:20.3]} 35... Nxc2+ {[%clk 0:00:37.1]} 36. Kg3
{[%clk 0:00:20.1]} 36... Qg1+ {[%clk 0:00:36.3]} 37. Kh4 {[%clk 0:00:19.6]}
37... Bxd2 {[%clk 0:00:32.7]} 38. Qxh7+ {[%clk 0:00:18.5]} 38... Kxh7 {[%clk
0:00:32.5]} 39. h3 {[%clk 0:00:19.3]} 39... a6 {[%clk 0:00:31]} 40. f4 {[%clk
0:00:20.2]} 40... a5 {[%clk 0:00:30.2]} 41. f5 {[%clk 0:00:21.1]} 41... e5
{[%clk 0:00:29.6]} 42. a4 {[%clk 0:00:22]} 42... e4 {[%clk 0:00:28.7]} 43. f6
{[%clk 0:00:22.9]} 43... gxf6 {[%clk 0:00:28.5]} 44. Kh5 {[%clk 0:00:22.8]}
44... Qg5# {[%clk 0:00:27.5]} 0-1

[Event "*** SCC Grand Prix: Titled Tuesday Blitz"]
[Site "Chess.com"]
[Date "2020.09.08"]
[Round "2"]
[White "parnali1611"]
[Black "NikolaGry"]
[Result "0-1"]
[WhiteElo "2156"]
[BlackElo "2616"]
[TimeControl "180+1"]
[EndTime "10:17:39 PDT"]
[Termination "NikolaGry won by resignation"]

1. d4 {[%clk 0:03:00.9]} 1... d5 {[%clk 0:02:59.8]} 2. c4 {[%clk 0:02:54.2]}
2... Nc6 {[%clk 0:02:59.7]} 3. Nf3 {[%clk 0:02:52.1]} 3... Bg4 {[%clk 0:02:59]}
4. cxd5 {[%clk 0:02:51.5]} 4... Bxf3 {[%clk 0:02:58.6]} 5. dxc6 {[%clk
0:02:48.5]} 5... Bxc6 {[%clk 0:02:58.1]} 6. Nc3 {[%clk 0:02:48]} 6... e6 {[%clk
0:02:58.1]} 7. e4 {[%clk 0:02:40.5]} 7... Bb4 {[%clk 0:02:56.3]} 8. f3 {[%clk
0:02:40.6]} 8... Qh4+ {[%clk 0:02:56.1]} 9. g3 {[%clk 0:02:40]} 9... Qf6 {[%clk
0:02:55.5]} 10. Be3 {[%clk 0:02:39.2]} 10... O-O-O {[%clk 0:02:54.9]} 11. Be2
{[%clk 0:02:31.6]} 11... Ne7 {[%clk 0:02:45.9]} 12. Qb3 {[%clk 0:02:30.8]} 12...
Ba5 {[%clk 0:02:26.3]} 13. O-O {[%clk 0:02:27.8]} 13... Bb6 {[%clk 0:02:24.4]}
14. e5 {[%clk 0:02:12.9]} 14... Qg6 {[%clk 0:02:18.5]} 15. Rad1 {[%clk 0:02:11]}
15... Nf5 {[%clk 0:02:00.4]} 16. Bd3 {[%clk 0:02:02.8]} 16... Nxe3 {[%clk
0:01:24.6]} 17. Bxg6 {[%clk 0:02:00.4]} 17... hxg6 {[%clk 0:01:24.2]} 18. Ne2
{[%clk 0:01:53.6]} 18... Nxd1 {[%clk 0:01:10]} 19. Rxd1 {[%clk 0:01:52.8]} 19...
Rd5 {[%clk 0:01:00.1]} 20. Kg2 {[%clk 0:01:46.9]} 20... Rhd8 {[%clk 0:00:54.9]}
21. Nf4 {[%clk 0:01:16.4]} 21... Rxd4 {[%clk 0:00:48.1]} 22. Rxd4 {[%clk
0:01:15.8]} 22... Rxd4 {[%clk 0:00:46.8]} 23. Nxg6 {[%clk 0:00:50.8]} 23... Rd2+
{[%clk 0:00:37.4]} 24. Kf1 {[%clk 0:00:39.2]} 24... Rf2+ {[%clk 0:00:28.1]} 25.
Ke1 {[%clk 0:00:39.1]} 25... Rxf3 {[%clk 0:00:26.6]} 26. Ne7+ {[%clk 0:00:37.4]}
26... Kd7 {[%clk 0:00:26]} 27. Qb4 {[%clk 0:00:34.2]} 27... a5 {[%clk 0:00:20]}
28. Qh4 {[%clk 0:00:27.7]} 28... Bb5 {[%clk 0:00:19.4]} 29. Ng8 {[%clk
0:00:22.6]} 29... Be3 {[%clk 0:00:17.3]} 30. Qe7+ {[%clk 0:00:20.7]} 30... Kc6
{[%clk 0:00:17]} 31. Qe8+ {[%clk 0:00:18.2]} 31... Kb6 {[%clk 0:00:16.4]} 32.
Kd1 {[%clk 0:00:18.5]} 32... Bxe8 {[%clk 0:00:15.6]} 0-1